[Event "Titled Tuesday Blitz May 30 Early 2023"]
[White "MunichMouse"]
[Black "Guevara Sanchez, Erick Marvin"]
[BlackFideId "6700136"]
[WhiteElo "2251"]
[BlackElo "2040"]
[Result "1-0"]
[Round "08"]
[TimeControl "180+2"]
[Date "2023.05.30"]
[WhiteClock "0:00:12"]
[BlackClock "0:00:04"]

1. d4 {[%clk 0:03:00]}  e6 {[%clk 0:02:58]} 2. c4 {[%clk 0:02:57]}  c5 {[%clk 0:02:58]} 3. Nf3 {[%clk 0:02:57]}  cxd4 {[%clk 0:02:58]} 4. Nxd4 {[%clk 0:02:55]}  Nc6 {[%clk 0:02:58]} 5. Nxc6 {[%clk 0:02:55]}  bxc6 {[%clk 0:02:56]} 6. g3 {[%clk 0:02:56]}  d5 {[%clk 0:02:54]} 7. Bg2 {[%clk 0:02:56]}  Nf6 {[%clk 0:02:53]} 8. O-O {[%clk 0:02:56]}  Be7 {[%clk 0:02:53]} 9. Qc2 {[%clk 0:02:55]}  O-O {[%clk 0:02:52]} 10. Rd1 {[%clk 0:02:55]}  Qc7 {[%clk 0:02:49]} 11. cxd5 {[%clk 0:02:51]}  exd5 {[%clk 0:02:48]} 12. Nc3 {[%clk 0:02:52]}  Bd6 {[%clk 0:02:42]} 13. Bg5 {[%clk 0:02:43]}  Nd7 {[%clk 0:02:27]} 14. Rac1 {[%clk 0:02:41]}  Qa5 {[%clk 0:02:15]} 15. Nxd5 {[%clk 0:01:48]}  Bb7 {[%clk 0:01:32]} 16. b4 {[%clk 0:01:23]}  Qb5 {[%clk 0:01:12]} 17. a4 {[%clk 0:01:21]}  Qa6 {[%clk 0:01:05]} 18. Ne7+ {[%clk 0:01:12]}  Bxe7 {[%clk 0:00:38]} 19. Bxe7 {[%clk 0:01:13]}  Ne5 {[%clk 0:00:39]} 20. Bxf8 {[%clk 0:01:01]}  Rxf8 {[%clk 0:00:39]} 21. b5 {[%clk 0:00:38]}  cxb5 {[%clk 0:00:36]} 22. axb5 {[%clk 0:00:37]}  Qxb5 {[%clk 0:00:35]} 23. Rb1 {[%clk 0:00:37]}  Qa6 {[%clk 0:00:18]} 24. Bxb7 {[%clk 0:00:35]}  Qf6 {[%clk 0:00:18]} 25. Qc7 {[%clk 0:00:25]}  h5 {[%clk 0:00:17]} 26. Rd6 {[%clk 0:00:19]}  Qf5 {[%clk 0:00:12]} 27. Rc1 {[%clk 0:00:18]}  Ng4 {[%clk 0:00:09]} 28. Bf3 {[%clk 0:00:16]}  h4 {[%clk 0:00:08]} 29. Rd8 {[%clk 0:00:13]}  Rxd8 {[%clk 0:00:06]} 30. Qxd8+ {[%clk 0:00:13]}  Kh7 {[%clk 0:00:05]} 31. Qxh4+ {[%clk 0:00:14]}  Nh6 {[%clk 0:00:04]} 32. Be4 {[%clk 0:00:12]}  g6 {[%clk 0:00:04]} 33. Bxf5 {[%clk 0:00:12]}  gxf5 {[%clk 0:00:05]} 34. Rc7 {[%clk 0:00:13]}  Kg7 {[%clk 0:00:04]} 35. Rxa7 {[%clk 0:00:11]}  Kg6 {[%clk 0:00:04]} 36. Ra6+ {[%clk 0:00:11]}  Kg7 {[%clk 0:00:04]} 37. Qf6+ {[%clk 0:00:10]}  Kh7 {[%clk 0:00:04]} 38. Qxh6+ {[%clk 0:00:11]}  Kg8 {[%clk 0:00:04]} 39. Ra8# {[%clk 0:00:12]} 1-0


[Site "https://www.chess.com"]

[Event "Titled Tuesday Blitz May 30 Early 2023"]
[White "Atanasov, Radislav"]
[Black "Lakshmi C"]
[WhiteFideId "2901471"]
[BlackFideId "25035347"]
[WhiteElo "2077"]
[BlackElo "1942"]
[Result "1-0"]
[Round "08"]
[TimeControl "180+2"]
[Date "2023.05.30"]
[WhiteClock "0:00:03"]
[BlackClock "0:00:00"]

1. e4 {[%clk 0:03:00]}  g6 {[%clk 0:02:45]} 2. Nf3 {[%clk 0:02:58]}  Bg7 {[%clk 0:02:45]} 3. d4 {[%clk 0:02:58]}  d6 {[%clk 0:02:44]} 4. c3 {[%clk 0:02:58]}  Nd7 {[%clk 0:02:44]} 5. h3 {[%clk 0:02:58]}  e5 {[%clk 0:02:44]} 6. Be2 {[%clk 0:02:57]}  Qe7 {[%clk 0:02:42]} 7. O-O {[%clk 0:02:55]}  f6 {[%clk 0:02:41]} 8. Re1 {[%clk 0:02:54]}  Nh6 {[%clk 0:02:41]} 9. Bc4 {[%clk 0:02:50]}  Nf7 {[%clk 0:02:39]} 10. Nbd2 {[%clk 0:02:50]}  O-O {[%clk 0:02:38]} 11. Nf1 {[%clk 0:02:47]}  Kh8 {[%clk 0:02:37]} 12. Ng3 {[%clk 0:02:41]}  c6 {[%clk 0:02:33]} 13. a4 {[%clk 0:02:38]}  Rb8 {[%clk 0:02:14]} 14. b4 {[%clk 0:02:03]}  Nd8 {[%clk 0:02:01]} 15. Ba3 {[%clk 0:01:32]}  Ne6 {[%clk 0:01:56]} 16. Qd2 {[%clk 0:00:52]}  b5 {[%clk 0:01:46]} 17. axb5 {[%clk 0:00:40]}  cxb5 {[%clk 0:01:45]} 18. Bb3 {[%clk 0:00:40]}  Nf4 {[%clk 0:01:36]} 19. Rad1 {[%clk 0:00:35]}  Bh6 {[%clk 0:01:34]} 20. Qa2 {[%clk 0:00:26]}  Nb6 {[%clk 0:01:23]} 21. Kh2 {[%clk 0:00:22]}  Rb7 {[%clk 0:00:20]} 22. Bc1 {[%clk 0:00:21]}  Rc7 {[%clk 0:00:20]} 23. Qb2 {[%clk 0:00:15]}  a6 {[%clk 0:00:15]} 24. Be3 {[%clk 0:00:08]}  Qe8 {[%clk 0:00:09]} 25. Rd2 {[%clk 0:00:06]}  Nc4 {[%clk 0:00:05]} 26. Bxc4 {[%clk 0:00:04]}  Rxc4 {[%clk 0:00:05]} 27. Red1 {[%clk 0:00:04]}  Qc6 {[%clk 0:00:05]} 28. dxe5 {[%clk 0:00:03]}  dxe5 {[%clk 0:00:04]} 29. Rd8 {[%clk 0:00:03]}  Kg8 {[%clk 0:00:00]} 30. Bc5 {[%clk 0:00:03]} 1-0


[Site "https://www.chess.com"]

[Event "Titled Tuesday Blitz May 30 Early 2023"]
[White "Castillo Pena, Patricia Evarista"]
[Black "Brown, Raehanna"]
[WhiteFideId "6412106"]
[BlackFideId "7402740"]
[WhiteElo "1919"]
[BlackElo "1655"]
[Result "0-1"]
[Round "08"]
[TimeControl "180+2"]
[Date "2023.05.30"]
[WhiteClock "0:00:22"]
[BlackClock "0:00:14"]

1. d4 {[%clk 0:02:59]}  Nf6 {[%clk 0:03:00]} 2. Nf3 {[%clk 0:02:55]}  g6 {[%clk 0:02:59]} 3. Nc3 {[%clk 0:02:55]}  Bg7 {[%clk 0:02:59]} 4. e4 {[%clk 0:02:55]}  d6 {[%clk 0:03:00]} 5. Be3 {[%clk 0:02:55]}  Nbd7 {[%clk 0:02:59]} 6. Qd2 {[%clk 0:02:53]}  c5 {[%clk 0:02:58]} 7. dxc5 {[%clk 0:02:47]}  Nxc5 {[%clk 0:02:56]} 8. e5 {[%clk 0:02:35]}  Nfe4 {[%clk 0:02:52]} 9. Nxe4 {[%clk 0:02:29]}  Nxe4 {[%clk 0:02:52]} 10. Qb4 {[%clk 0:02:11]}  d5 {[%clk 0:02:10]} 11. Bb5+ {[%clk 0:01:59]}  Bd7 {[%clk 0:02:09]} 12. e6 {[%clk 0:01:50]}  fxe6 {[%clk 0:02:05]} 13. O-O {[%clk 0:01:35]}  O-O {[%clk 0:01:59]} 14. Ng5 {[%clk 0:01:30]}  Nxg5 {[%clk 0:01:46]} 15. Bxg5 {[%clk 0:01:31]}  Bf6 {[%clk 0:01:38]} 16. Bh6 {[%clk 0:01:27]}  Rf7 {[%clk 0:01:32]} 17. c4 {[%clk 0:01:26]}  Bxb5 {[%clk 0:01:20]} 18. Qxb5 {[%clk 0:01:25]}  b6 {[%clk 0:00:54]} 19. Rad1 {[%clk 0:01:21]}  d4 {[%clk 0:00:52]} 20. c5 {[%clk 0:01:15]}  Qd5 {[%clk 0:00:48]} 21. b4 {[%clk 0:01:06]}  bxc5 {[%clk 0:00:35]} 22. Qxc5 {[%clk 0:01:03]}  Qxc5 {[%clk 0:00:24]} 23. bxc5 {[%clk 0:01:04]}  Rc8 {[%clk 0:00:25]} 24. Rc1 {[%clk 0:01:04]}  g5 {[%clk 0:00:23]} 25. Rfd1 {[%clk 0:01:00]}  Rc6 {[%clk 0:00:19]} 26. f4 {[%clk 0:01:00]}  gxf4 {[%clk 0:00:18]} 27. Bxf4 {[%clk 0:00:59]}  e5 {[%clk 0:00:19]} 28. Bg3 {[%clk 0:00:57]}  Rg7 {[%clk 0:00:19]} 29. Rd3 {[%clk 0:00:52]}  Bg5 {[%clk 0:00:18]} 30. Rc4 {[%clk 0:00:50]}  Be3+ {[%clk 0:00:16]} 31. Kf1 {[%clk 0:00:48]}  e4 {[%clk 0:00:16]} 32. Rxe3 {[%clk 0:00:47]}  dxe3 {[%clk 0:00:16]} 33. Ke2 {[%clk 0:00:45]}  Rf7 {[%clk 0:00:16]} 34. Kxe3 {[%clk 0:00:44]}  Rf1 {[%clk 0:00:16]} 35. Kxe4 {[%clk 0:00:43]}  Ra1 {[%clk 0:00:17]} 36. a4 {[%clk 0:00:42]}  Ra2 {[%clk 0:00:15]} 37. Kd5 {[%clk 0:00:42]}  Rc8 {[%clk 0:00:14]} 38. c6 {[%clk 0:00:41]}  Rd2+ {[%clk 0:00:14]} 39. Ke6 {[%clk 0:00:41]}  Re2+ {[%clk 0:00:14]} 40. Be5 {[%clk 0:00:40]}  Kf8 {[%clk 0:00:14]} 41. Rf4+ {[%clk 0:00:38]}  Ke8 {[%clk 0:00:14]} 42. Rg4 {[%clk 0:00:36]}  Rxc6+ {[%clk 0:00:14]} 43. Kd5 {[%clk 0:00:35]}  Ra6 {[%clk 0:00:14]} 44. Bc7 {[%clk 0:00:27]}  Kd7 {[%clk 0:00:13]} 45. Be5 {[%clk 0:00:22]}  Ra5+ {[%clk 0:00:14]} 0-1


[Site "https://www.chess.com"]

[Event "Titled Tuesday Blitz May 30 Early 2023"]
[White "Levitan, Caleb Levi"]
[Black "dDobravcan"]
[WhiteFideId "14332620"]
[WhiteElo "1963"]
[BlackElo "2102"]
[Result "1-0"]
[Round "08"]
[TimeControl "180+2"]
[Date "2023.05.30"]
[WhiteClock "0:00:03"]
[BlackClock "0:00:00"]

1. e4 {[%clk 0:03:00]}  c5 {[%clk 0:02:58]} 2. Nf3 {[%clk 0:03:00]}  e6 {[%clk 0:02:55]} 3. d4 {[%clk 0:02:59]}  cxd4 {[%clk 0:02:55]} 4. Nxd4 {[%clk 0:02:58]}  d6 {[%clk 0:02:55]} 5. Nc3 {[%clk 0:02:49]}  a6 {[%clk 0:02:55]} 6. Bc4 {[%clk 0:02:38]}  b5 {[%clk 0:02:55]} 7. Bb3 {[%clk 0:02:38]}  Nd7 {[%clk 0:02:50]} 8. Be3 {[%clk 0:02:20]}  Nc5 {[%clk 0:02:40]} 9. f3 {[%clk 0:02:03]}  Nf6 {[%clk 0:02:36]} 10. Qd2 {[%clk 0:02:01]}  Bb7 {[%clk 0:02:32]} 11. O-O-O {[%clk 0:01:46]}  h5 {[%clk 0:02:25]} 12. Nde2 {[%clk 0:01:33]}  Nxb3+ {[%clk 0:02:20]} 13. axb3 {[%clk 0:01:32]}  Be7 {[%clk 0:02:08]} 14. h3 {[%clk 0:01:24]}  h4 {[%clk 0:02:04]} 15. Bg5 {[%clk 0:01:06]}  Qc7 {[%clk 0:01:58]} 16. Kb1 {[%clk 0:00:42]}  O-O-O {[%clk 0:01:47]} 17. Nd4 {[%clk 0:00:29]}  Kb8 {[%clk 0:01:39]} 18. Be3 {[%clk 0:00:19]}  Rh5 {[%clk 0:01:19]} 19. Nce2 {[%clk 0:00:14]}  Rc8 {[%clk 0:01:11]} 20. Nf4 {[%clk 0:00:10]}  Rhh8 {[%clk 0:01:08]} 21. Nd3 {[%clk 0:00:09]}  e5 {[%clk 0:01:02]} 22. Nf5 {[%clk 0:00:08]}  Bf8 {[%clk 0:00:59]} 23. Nb4 {[%clk 0:00:08]}  g6 {[%clk 0:00:55]} 24. Nxd6 {[%clk 0:00:04]}  Rd8 {[%clk 0:00:52]} 25. Nxb5 {[%clk 0:00:02]}  Rxd2 {[%clk 0:00:49]} 26. Nxc7 {[%clk 0:00:02]}  Rxd1+ {[%clk 0:00:49]} 27. Rxd1 {[%clk 0:00:03]}  Kxc7 {[%clk 0:00:49]} 28. Nd3 {[%clk 0:00:03]}  Bd6 {[%clk 0:00:42]} 29. c4 {[%clk 0:00:03]}  Re8 {[%clk 0:00:37]} 30. Kc2 {[%clk 0:00:02]}  Nd7 {[%clk 0:00:32]} 31. Bg5 {[%clk 0:00:02]}  Rh8 {[%clk 0:00:29]} 32. Be3 {[%clk 0:00:02]}  f6 {[%clk 0:00:29]} 33. c5 {[%clk 0:00:03]}  Be7 {[%clk 0:00:28]} 34. b4 {[%clk 0:00:03]}  f5 {[%clk 0:00:25]} 35. Nf2 {[%clk 0:00:02]}  Nf6 {[%clk 0:00:20]} 36. b3 {[%clk 0:00:01]}  fxe4 {[%clk 0:00:19]} 37. Nxe4 {[%clk 0:00:01]}  Nxe4 {[%clk 0:00:19]} 38. fxe4 {[%clk 0:00:02]}  Bxe4+ {[%clk 0:00:18]} 39. Kc3 {[%clk 0:00:02]}  Bxg2 {[%clk 0:00:17]} 40. Rg1 {[%clk 0:00:03]}  Be4 {[%clk 0:00:16]} 41. Rg4 {[%clk 0:00:02]}  Bf5 {[%clk 0:00:15]} 42. Rg1 {[%clk 0:00:02]}  Rd8 {[%clk 0:00:14]} 43. Bf2 {[%clk 0:00:02]}  Rd3+ {[%clk 0:00:13]} 44. Kc4 {[%clk 0:00:02]}  Rd2 {[%clk 0:00:13]} 45. Be3 {[%clk 0:00:02]}  Rc2+ {[%clk 0:00:10]} 46. Kd5 {[%clk 0:00:02]}  Bf6 {[%clk 0:00:08]} 47. b5 {[%clk 0:00:01]}  axb5 {[%clk 0:00:06]} 48. Ra1 {[%clk 0:00:01]}  Rc3 {[%clk 0:00:03]} 49. Ra7+ {[%clk 0:00:02]}  Kb8 {[%clk 0:00:03]} 50. Rf7 {[%clk 0:00:02]}  Rd3+ {[%clk 0:00:00]} 51. Kc6 {[%clk 0:00:03]} 1-0


[Site "https://www.chess.com"]

[Event "Titled Tuesday Blitz May 30 Early 2023"]
[White "Ciuffoletti, Paolo"]
[Black "Mirzanurov, Bulat"]
[WhiteFideId "807630"]
[BlackFideId "4184521"]
[WhiteElo "2143"]
[BlackElo "2005"]
[Result "1-0"]
[Round "08"]
[TimeControl "180+2"]
[Date "2023.05.30"]
[WhiteClock "0:00:40"]
[BlackClock "0:00:17"]

1. e4 {[%clk 0:03:00]}  c5 {[%clk 0:02:59]} 2. d4 {[%clk 0:03:00]}  cxd4 {[%clk 0:02:56]} 3. c3 {[%clk 0:03:00]}  dxc3 {[%clk 0:02:55]} 4. Nxc3 {[%clk 0:03:00]}  e6 {[%clk 0:02:55]} 5. Nf3 {[%clk 0:03:00]}  a6 {[%clk 0:02:54]} 6. Bc4 {[%clk 0:03:00]}  b5 {[%clk 0:02:54]} 7. Bb3 {[%clk 0:02:59]}  Nc6 {[%clk 0:02:54]} 8. O-O {[%clk 0:02:59]}  Na5 {[%clk 0:02:54]} 9. Bc2 {[%clk 0:02:54]}  Bb7 {[%clk 0:02:54]} 10. e5 {[%clk 0:02:29]}  Bc5 {[%clk 0:02:06]} 11. Ne4 {[%clk 0:02:25]}  Bxe4 {[%clk 0:01:58]} 12. Bxe4 {[%clk 0:02:24]}  Rc8 {[%clk 0:01:59]} 13. Qe2 {[%clk 0:02:09]}  Ne7 {[%clk 0:01:56]} 14. Bf4 {[%clk 0:02:02]}  O-O {[%clk 0:01:51]} 15. Bxh7+ {[%clk 0:01:55]}  Kxh7 {[%clk 0:01:37]} 16. Ng5+ {[%clk 0:01:54]}  Kg6 {[%clk 0:01:19]} 17. Qg4 {[%clk 0:01:34]}  f5 {[%clk 0:01:03]} 18. exf6 {[%clk 0:01:22]}  Rxf6 {[%clk 0:01:00]} 19. Nxe6+ {[%clk 0:01:17]}  Kf7 {[%clk 0:00:59]} 20. Nxd8+ {[%clk 0:01:08]}  Rxd8 {[%clk 0:01:00]} 21. Qh5+ {[%clk 0:01:07]}  Ng6 {[%clk 0:00:57]} 22. Bg5 {[%clk 0:01:05]}  Rf5 {[%clk 0:00:53]} 23. Qg4 {[%clk 0:01:03]}  Re5 {[%clk 0:00:39]} 24. Bxd8 {[%clk 0:01:01]}  Nc6 {[%clk 0:00:36]} 25. Bc7 {[%clk 0:00:58]}  Re6 {[%clk 0:00:34]} 26. Bg3 {[%clk 0:00:56]}  Nce5 {[%clk 0:00:32]} 27. Qf5+ {[%clk 0:00:54]}  Kg8 {[%clk 0:00:29]} 28. Rac1 {[%clk 0:00:51]}  Bd6 {[%clk 0:00:27]} 29. Rc8+ {[%clk 0:00:49]}  Nf8 {[%clk 0:00:26]} 30. Bxe5 {[%clk 0:00:46]}  Rxe5 {[%clk 0:00:24]} 31. Rxf8+ {[%clk 0:00:45]}  Bxf8 {[%clk 0:00:24]} 32. Qxe5 {[%clk 0:00:44]}  d6 {[%clk 0:00:24]} 33. Qe6+ {[%clk 0:00:44]}  Kh7 {[%clk 0:00:23]} 34. Rd1 {[%clk 0:00:43]}  b4 {[%clk 0:00:20]} 35. Rd3 {[%clk 0:00:43]}  g5 {[%clk 0:00:20]} 36. Qf7+ {[%clk 0:00:41]}  Kh8 {[%clk 0:00:16]} 37. Rh3+ {[%clk 0:00:40]}  Bh6 {[%clk 0:00:17]} 38. Rxh6# {[%clk 0:00:40]} 1-0


[Site "https://www.chess.com"]

[Event "Titled Tuesday Blitz May 30 Early 2023"]
[White "Nepomniachtchi, Ian"]
[Black "Nihal Sarin"]
[WhiteFideId "4168119"]
[BlackFideId "25092340"]
[WhiteElo "2781"]
[BlackElo "2689"]
[Result "0-1"]
[Round "09"]
[TimeControl "180+2"]
[Date "2023.05.30"]
[WhiteClock "0:00:00"]
[BlackClock "0:00:05"]

1. e4 {[%clk 0:03:00]}  e5 {[%clk 0:02:56]} 2. f4 {[%clk 0:03:00]}  Bc5 {[%clk 0:02:46]} 3. Nf3 {[%clk 0:03:00]}  d6 {[%clk 0:02:46]} 4. c3 {[%clk 0:02:59]}  Nf6 {[%clk 0:02:42]} 5. d4 {[%clk 0:03:00]}  exd4 {[%clk 0:02:42]} 6. cxd4 {[%clk 0:03:00]}  Bb4+ {[%clk 0:02:42]} 7. Bd2 {[%clk 0:03:01]}  Bxd2+ {[%clk 0:02:42]} 8. Nbxd2 {[%clk 0:03:02]}  O-O {[%clk 0:02:42]} 9. Bd3 {[%clk 0:02:49]}  Nc6 {[%clk 0:02:30]} 10. O-O {[%clk 0:02:48]}  Nb4 {[%clk 0:02:16]} 11. Bb1 {[%clk 0:02:48]}  c5 {[%clk 0:02:16]} 12. a3 {[%clk 0:02:44]}  Nc6 {[%clk 0:02:01]} 13. d5 {[%clk 0:02:41]}  Ne7 {[%clk 0:02:00]} 14. Qc2 {[%clk 0:02:30]}  Ng6 {[%clk 0:01:49]} 15. g3 {[%clk 0:02:30]}  b5 {[%clk 0:01:39]} 16. a4 {[%clk 0:02:29]}  Bh3 {[%clk 0:01:36]} 17. Re1 {[%clk 0:02:15]}  a6 {[%clk 0:01:17]} 18. Ng5 {[%clk 0:02:15]}  Bd7 {[%clk 0:01:11]} 19. axb5 {[%clk 0:01:39]}  axb5 {[%clk 0:01:12]} 20. Rxa8 {[%clk 0:01:39]}  Qxa8 {[%clk 0:01:13]} 21. Ndf3 {[%clk 0:01:40]}  h6 {[%clk 0:00:31]} 22. Nxf7 {[%clk 0:01:39]}  Rxf7 {[%clk 0:00:32]} 23. e5 {[%clk 0:01:39]}  Qxd5 {[%clk 0:00:28]} 24. Qxg6 {[%clk 0:01:36]}  dxe5 {[%clk 0:00:20]} 25. Nxe5 {[%clk 0:00:56]}  Qd4+ {[%clk 0:00:18]} 26. Kf1 {[%clk 0:00:43]}  Bh3+ {[%clk 0:00:09]} 27. Ke2 {[%clk 0:00:43]}  Re7 {[%clk 0:00:10]} 28. Qd3 {[%clk 0:00:38]}  Qxb2+ {[%clk 0:00:08]} 29. Bc2 {[%clk 0:00:34]}  c4 {[%clk 0:00:07]} 30. Qd2 {[%clk 0:00:32]}  c3 {[%clk 0:00:04]} 31. Qd3 {[%clk 0:00:27]}  Be6 {[%clk 0:00:04]} 32. Kf1 {[%clk 0:00:15]}  Qb4 {[%clk 0:00:04]} 33. Qe3 {[%clk 0:00:12]}  Qb2 {[%clk 0:00:03]} 34. Re2 {[%clk 0:00:12]}  Qb4 {[%clk 0:00:02]} 35. Kg2 {[%clk 0:00:12]}  Bd5+ {[%clk 0:00:02]} 36. Kh3 {[%clk 0:00:12]}  Qd6 {[%clk 0:00:02]} 37. Qxc3 {[%clk 0:00:10]}  b4 {[%clk 0:00:02]} 38. Qe3 {[%clk 0:00:10]}  b3 {[%clk 0:00:01]} 39. Bb1 {[%clk 0:00:09]}  Qe6+ {[%clk 0:00:02]} 40. g4 {[%clk 0:00:09]}  Qd6 {[%clk 0:00:01]} 41. Kg3 {[%clk 0:00:09]}  b2 {[%clk 0:00:01]} 42. h4 {[%clk 0:00:09]}  g5 {[%clk 0:00:01]} 43. hxg5 {[%clk 0:00:08]}  hxg5 {[%clk 0:00:01]} 44. Qd3 {[%clk 0:00:06]}  gxf4+ {[%clk 0:00:01]} 45. Kxf4 {[%clk 0:00:07]}  Rxe5 {[%clk 0:00:01]} 46. Rxe5 {[%clk 0:00:07]}  Nd7 {[%clk 0:00:01]} 47. Qh7+ {[%clk 0:00:06]}  Kf8 {[%clk 0:00:01]} 48. Qh8+ {[%clk 0:00:07]}  Bg8 {[%clk 0:00:01]} 49. Ba2 {[%clk 0:00:05]}  Qxe5+ {[%clk 0:00:02]} 50. Qxe5 {[%clk 0:00:05]}  Nxe5 {[%clk 0:00:03]} 51. Bb1 {[%clk 0:00:05]}  Nc4 {[%clk 0:00:03]} 52. g5 {[%clk 0:00:04]}  Kg7 {[%clk 0:00:04]} 53. g6 {[%clk 0:00:04]}  Na3 {[%clk 0:00:05]} 54. Be4 {[%clk 0:00:00]}  Bb3 {[%clk 0:00:05]} 0-1


[Site "https://www.chess.com"]

[Event "Titled Tuesday Blitz May 30 Early 2023"]
[White "Naroditsky, Daniel"]
[Black "Lazavik, Denis"]
[WhiteFideId "2026961"]
[BlackFideId "13515110"]
[WhiteElo "2633"]
[BlackElo "2560"]
[Result "1-0"]
[Round "09"]
[TimeControl "180+2"]
[Date "2023.05.30"]
[WhiteClock "0:00:03"]
[BlackClock "0:00:01"]

1. d4 {[%clk 0:02:52]}  Nf6 {[%clk 0:03:00]} 2. Nc3 {[%clk 0:02:53]}  d5 {[%clk 0:02:57]} 3. Bf4 {[%clk 0:02:53]}  c5 {[%clk 0:02:57]} 4. e4 {[%clk 0:02:52]}  cxd4 {[%clk 0:02:56]} 5. Qxd4 {[%clk 0:02:52]}  Nc6 {[%clk 0:02:56]} 6. Bb5 {[%clk 0:02:52]}  Bd7 {[%clk 0:02:57]} 7. Bxc6 {[%clk 0:02:49]}  Bxc6 {[%clk 0:02:58]} 8. e5 {[%clk 0:02:49]}  Nd7 {[%clk 0:02:58]} 9. e6 {[%clk 0:02:49]}  fxe6 {[%clk 0:02:59]} 10. Nf3 {[%clk 0:02:49]}  Qb6 {[%clk 0:02:47]} 11. Qd2 {[%clk 0:02:49]}  d4 {[%clk 0:02:35]} 12. Qxd4 {[%clk 0:02:46]}  Qxd4 {[%clk 0:02:27]} 13. Nxd4 {[%clk 0:02:46]}  Bxg2 {[%clk 0:02:27]} 14. Nxe6 {[%clk 0:01:54]}  Bxh1 {[%clk 0:02:24]} 15. Nc7+ {[%clk 0:01:54]}  Kd8 {[%clk 0:01:36]} 16. Nxa8 {[%clk 0:01:55]}  e5 {[%clk 0:01:34]} 17. Bg5+ {[%clk 0:01:25]}  Kc8 {[%clk 0:01:33]} 18. O-O-O {[%clk 0:00:58]}  Bc6 {[%clk 0:01:31]} 19. Nd5 {[%clk 0:00:49]}  Bd6 {[%clk 0:01:04]} 20. Be7 {[%clk 0:00:41]}  Bb8 {[%clk 0:00:58]} 21. Nb4 {[%clk 0:00:32]}  Re8 {[%clk 0:00:46]} 22. Bg5 {[%clk 0:00:32]}  Be4 {[%clk 0:00:29]} 23. Re1 {[%clk 0:00:24]}  Bc6 {[%clk 0:00:28]} 24. Rd1 {[%clk 0:00:21]}  h6 {[%clk 0:00:28]} 25. Be3 {[%clk 0:00:18]}  Bf3 {[%clk 0:00:27]} 26. Rd3 {[%clk 0:00:06]}  b6 {[%clk 0:00:28]} 27. Nd5 {[%clk 0:00:03]}  Bxd5 {[%clk 0:00:14]} 28. Rxd5 {[%clk 0:00:04]}  Nf6 {[%clk 0:00:15]} 29. Rb5 {[%clk 0:00:03]}  Re6 {[%clk 0:00:13]} 30. Bxb6 {[%clk 0:00:02]}  axb6 {[%clk 0:00:12]} 31. Nxb6+ {[%clk 0:00:03]}  Kd8 {[%clk 0:00:13]} 32. Nc4 {[%clk 0:00:03]}  Bc7 {[%clk 0:00:13]} 33. a4 {[%clk 0:00:03]}  e4 {[%clk 0:00:14]} 34. a5 {[%clk 0:00:03]}  Bxh2 {[%clk 0:00:13]} 35. b4 {[%clk 0:00:02]}  Bc7 {[%clk 0:00:13]} 36. Rb7 {[%clk 0:00:02]}  h5 {[%clk 0:00:13]} 37. b5 {[%clk 0:00:02]}  Nd5 {[%clk 0:00:07]} 38. b6 {[%clk 0:00:02]}  Bf4+ {[%clk 0:00:07]} 39. Kb2 {[%clk 0:00:02]}  h4 {[%clk 0:00:06]} 40. a6 {[%clk 0:00:02]}  Nxb6 {[%clk 0:00:05]} 41. Nxb6 {[%clk 0:00:02]}  Be5+ {[%clk 0:00:06]} 42. Kb3 {[%clk 0:00:02]}  Rxb6+ {[%clk 0:00:01]} 43. Rxb6 {[%clk 0:00:03]} 1-0


[Site "https://www.chess.com"]